[Event "45th FIDE Womens Olympiad 2024"]
[Site "Budapest"]
[Date "2024.09.13"]
[Round "3.1"]
[White "Kosteniuk, Alexandra"]
[Black "Dronavalli, Harika"]
[Result "1-0"]
[ECO "C54"]
[WhiteElo "2483"]
[BlackElo "2502"]
[Annotator "RC"]
[PlyCount "91"]
[EventDate "2024.09.05"]
[EventType "team-tourn"]
[EventCountry "HUN"]
[SourceTitle "playchess.com"]
[Source "ChessBase"]
[SourceQuality "1"]
[WhiteTeam "Switzerland"]
[BlackTeam "India"]
[WhiteTeamCountry "SUI"]
[BlackTeamCountry "IND"]
[TimeControl "40/5400+30:1800+30"]

1. e4 {[%emt 0:00:06]} e5 {[%emt 0:00:18]} 2. Nf3 {[%emt 0:00:08]} Nc6 {[%emt 0:00:10]} 3. Bc4 {[%emt 0:00:13]} Bc5 {[%emt 0:00:37]} 4. c3 {[%emt 0:00:15]} Nf6 {[%emt 0:00:26]} 5. d3 {[%emt 0:00:17]} d6 {[%emt 0:02:14]} 6. Nbd2 {[%emt 0:00:26]} O-O {[%emt 0:05:56]} 7. h3 {[%emt 0:00:44]} a5 {[%emt 0:05:46]} 8. O-O {[%emt 0:00:16]} h6 {[%emt 0:01:01]} 9. Re1 {[%emt 0:00:38]} Be6 {[%emt 0:04:18]} 10. Bb5 {[%emt 0:00:25]} Qb8 {[%emt 0:02:43]} 11. Nf1 {[%emt 0:00:19]} Qa7 {[%emt 0:02:38]} 12. Re2 {[%emt 0:00:21]} a4 {[%emt 0:02:25]} 13. Rc2 {[%emt 0:00:58]} Qa5 {[%emt 0:06:32]} 14. Bxc6 {[%emt 0:00:08]} bxc6 {[%emt 0:00:04]} 15. Bd2 {[%emt 0:01:05]} Qa6 {[%emt 0:05:51]} 16. c4 {[%emt 0:12:15]} Qc8 {[%emt 0:06:22]} 17. Be3 {[%emt 0:07:29]} Bxe3 {[%emt 0:05:33]} 18. fxe3 {[%emt 0:00:33]} c5 {[%emt 0:08:22]} 19. Ng3 {[%emt 0:01:52]} Nh7 {[%emt 0:04:31]} 20. Kh2 {[%emt 0:12:13]} Qd8 {[%emt 0:06:41]} 21. Rf2 {[%emt 0:06:02]} g6 {[%emt 0:01:41]} 22. Ne2 {[%emt 0:02:56]} c6 {[%emt 0:11:12]} 23. Nc3 {[%emt 0:00:42]} Qa5 {[%emt 0:01:42]} 24. Rc1 {[%emt 0:02:24]} Ra7 {[%emt 0:00:59]} 25. Kh1 {[%emt 0:15:06]} Rb8 {[%emt 0:01:42]} 26. d4 {[%emt 0:03:35]} exd4 {[%emt 0:01:48]} 27. exd4 {[%emt 0:00:03]} Bxc4 {[%emt 0:03:09]} 28. dxc5 {[%emt 0:02:03]} Qxc5 {[%emt 0:00:26]} 29. Rd2 {[%emt 0:01:27]} Ng5 {[%emt 0:01:20]} 30. Nd4 {[%emt 0:07:50]} Qb6 {[%emt 0:03:51]} 31. Nxa4 {[%emt 0:01:43]} Qa6 {[%emt 0:01:09]} 32. b3 {[%emt 0:02:39]} c5 {[%emt 0:03:45]} 33. Rxc4 {[%emt 0:01:53]} cxd4 {[%emt 0:00:04]} 34. Rdxd4 {[%emt 0:02:37]} Qb7 {[%emt 0:00:36]} 35. Nc3 {[%emt 0:06:02]} Rc8 {[%emt 0:00:09]} 36. a4 {[%emt 0:02:52]} Raa8 {[%emt 0:01:34]} 37. Nd5 {[%emt 0:02:10]} Rc5 {[%emt 0:00:03]} 38. Nf6+ {[%emt 0:04:55]} Kg7 {[%emt 0:00:19]} 39. Ng4 {[%emt 0:00:13]} h5 {[%emt 0:01:13]} 40. Rxc5 {[%emt 0:00:18]} dxc5 {[%emt 0:00:05]} 41. Rd7 {[%emt 0:30:07]} Qc6 {[%emt 0:07:23]} 42. Qa1+ {[%emt 0:00:00]} Kh7 {[%emt 0:00:19]} 43. Nf6+ {[%emt 0:00:00]} Kh6 {[%emt 0:00:42]} 44. h4 {[%emt 0:00:00]} Nxe4 {[%emt 0:00:23]} 45. Rxf7 {[%emt 0:00:00]} Nxf6 {[%emt 0:00:18]} 46. Qc1+ {[%emt 0:00:00]} 1-0

[Event "45th FIDE Womens Olympiad 2024"]
[Site "Budapest"]
[Date "2024.09.13"]
[Round "3.1"]
[White "Yavo Tchetche, Marie"]
[Black "Sanudula, K M Dahamdi"]
[Result "1/2-1/2"]
[ECO "D02"]
[WhiteElo "1686"]
[BlackElo "2023"]
[Annotator "NA RC"]
[PlyCount "94"]
[EventDate "2024.09.05"]
[EventType "team-tourn"]
[EventCountry "HUN"]
[SourceTitle "playchess.com"]
[Source "ChessBase"]
[SourceQuality "1"]
[WhiteTeam "Cote d/^Ivoire"]
[BlackTeam "Sri Lanka"]
[BlackTeamCountry "SRI"]
[TimeControl "40/5400+30:1800+30"]

1. d4 Nf6 2. Nf3 e6 3. g3 d5 4. Bg2 Be7 5. O-O O-O 6. Nbd2 b6 7. c4 Bb7 8. a3 c5 9. e3 Nbd7 10. b3 Rc8 11. Bb2 Ne4 12. Nxe4 dxe4 13. Ne5 Rc7 14. Qc2 Nxe5 15. dxe5 Rd7 16. Rfd1 Rd3 17. Bf1 Rd7 18. Rxd7 Qxd7 19. Rd1 Qc6 20. Qd2 Bc8 21. Bg2 f5 22. exf6 gxf6 23. Qe2 Kh8 24. Rd2 e5 25. Bc3 Be6 26. Qd3 Bf5 27. Qe2 a6 28. Qh5 Qe6 29. Qh4 Bg6 30. Qh3 Bf5 31. Qh5 b5 32. Qe2 Bg4 33. Qf1 b4 34. axb4 cxb4 35. Ba1 Bf3 36. Bh3 f5 37. Qe1 Bd6 38. Rd5 Qh6 39. Bg2 Bh5 40. Bxe5+ Bxe5 41. Rxe5 Rd8 42. Qxb4 Rd1+ 43. Bf1 Qf6 44. Qb8+ Kg7 45. Rd5 Rxf1+ 46. Kxf1 Qa1+ 47. Kg2 Bf3+ 1/2-1/2

[Event "45th FIDE Womens Olympiad 2024"]
[Site "Budapest"]
[Date "2024.09.13"]
[Round "3.2"]
[White "Vaishali, Rameshbabu"]
[Black "Hakimifard, Ghazal"]
[Result "1-0"]
[ECO "D02"]
[WhiteElo "2498"]
[BlackElo "2192"]
[Annotator "RC"]
[PlyCount "75"]
[EventDate "2024.09.05"]
[EventType "team-tourn"]
[EventCountry "HUN"]
[SourceTitle "playchess.com"]
[Source "ChessBase"]
[SourceQuality "1"]
[WhiteTeam "India"]
[BlackTeam "Switzerland"]
[WhiteTeamCountry "IND"]
[BlackTeamCountry "SUI"]
[TimeControl "40/5400+30:1800+30"]

1. d4 {[%emt 0:00:18]} Nf6 {[%emt 0:00:07]} 2. Bf4 {[%emt 0:00:08]} d5 {[%emt 0:00:09]} 3. e3 {[%emt 0:00:13]} e6 {[%emt 0:00:10]} 4. Nf3 {[%emt 0:00:13]} Bd6 {[%emt 0:00:26]} 5. Ne5 {[%emt 0:00:39]} O-O {[%emt 0:08:04]} 6. Nd2 {[%emt 0:00:43]} c5 {[%emt 0:00:06]} 7. c3 {[%emt 0:00:23]} c4 {[%emt 0:04:21]} 8. h4 {[%emt 0:01:56]} Qc7 {[%emt 0:01:54]} 9. h5 {[%emt 0:01:24]} Nbd7 {[%emt 0:05:17]} 10. h6 {[%emt 0:11:20]} g6 {[%emt 0:00:59]} 11. Ndf3 {[%emt 0:08:33]} Ne4 {[%emt 0:02:58]} 12. Qc2 {[%emt 0:06:03]} b5 {[%emt 0:02:28]} 13. Be2 {[%emt 0:07:17]} a5 {[%emt 0:05:41]} 14. Nxd7 {[%emt 0:19:35]} Bxd7 {[%emt 0:02:04]} 15. Bxd6 {[%emt 0:01:47]} Qxd6 {[%emt 0:01:30]} 16. Nd2 {[%emt 0:02:59]} Nxd2 {[%emt 0:13:27]} 17. Qxd2 {[%emt 0:00:06]} e5 {[%emt 0:08:02]} 18. dxe5 {[%emt 0:01:05]} Qxe5 {[%emt 0:00:01]} 19. f4 {[%emt 0:03:36]} Qf6 {[%emt 0:04:41]} 20. Kf2 {[%emt 0:02:33]} Rad8 {[%emt 0:03:19]} 21. Rad1 {[%emt 0:02:51]} Bf5 {[%emt 0:01:16]} 22. Qd4 {[%emt 0:01:57]} Qxd4 {[%emt 0:03:27]} 23. Rxd4 {[%emt 0:00:03]} Rd7 {[%emt 0:03:06]} 24. Rhd1 {[%emt 0:11:22]} Rfd8 {[%emt 0:00:28]} 25. R1d2 {[%emt 0:01:23]} a4 {[%emt 0:05:28]} 26. Bf3 {[%emt 0:05:23]} Be6 {[%emt 0:09:23]} 27. e4 {[%emt 0:02:33]} dxe4 {[%emt 0:00:39]} 28. Rxd7 {[%emt 0:00:02]} Rxd7 {[%emt 0:00:49]} 29. Rxd7 {[%emt 0:00:05]} Bxd7 {[%emt 0:00:01]} 30. Bxe4 {[%emt 0:00:02]} Kf8 {[%emt 0:00:36]} 31. Ke3 {[%emt 0:00:07]} Ke7 {[%emt 0:00:09]} 32. Kd4 {[%emt 0:00:24]} Kd6 {[%emt 0:00:17]} 33. Bd5 {[%emt 0:00:16]} Ke7 {[%emt 0:11:39]} 34. Kc5 {[%emt 0:00:48]} Kf6 {[%emt 0:00:06]} 35. Kd6 {[%emt 0:01:51]} Bc8 {[%emt 0:03:31]} 36. Kc6 {[%emt 0:04:25]} Kf5 {[%emt 0:00:47]} 37. Bxf7 {[%emt 0:01:19]} Kxf4 {[%emt 0:00:57]} 38. Bxg6 {[%emt 0:00:26]} 1-0

[Event "45th FIDE Womens Olympiad 2024"]
[Site "Budapest"]
[Date "2024.09.13"]
[Round "3.2"]
[White "Tharushi, T H D Niklesha"]
[Black "Kouassi Edichy Berenice"]
[Result "1-0"]
[ECO "D11"]
[WhiteElo "1852"]
[BlackElo "1528"]
[Annotator "NA RC"]
[PlyCount "55"]
[EventDate "2024.09.05"]
[EventType "team-tourn"]
[EventCountry "HUN"]
[SourceTitle "playchess.com"]
[Source "ChessBase"]
[SourceQuality "1"]
[WhiteTeam "Sri Lanka"]
[BlackTeam "Cote d/^Ivoire"]
[WhiteTeamCountry "SRI"]
[TimeControl "40/5400+30:1800+30"]

1. d4 d5 2. c4 c6 3. Nf3 Nf6 4. g3 Bf5 5. Bg2 e6 6. O-O Nbd7 7. Nc3 Be7 8. Nd2 O-O 9. e4 Bg6 10. e5 Ne8 11. cxd5 cxd5 12. f4 Bd3 13. Rf3 Ba6 14. Kh1 b6 15. f5 Bb7 16. Rf2 Rc8 17. Qg4 exf5 18. Rxf5 Nc7 19. Nf1 Kh8 20. Bd2 Bb4 21. Bh3 Bc6 22. Rh5 Ne6 23. Bg2 Be7 24. Qh3 h6 25. Bxh6 gxh6 26. Rxh6+ Kg8 27. Rh8+ Kg7 28. Qh6# 1-0

[Event "45th FIDE Womens Olympiad 2024"]
[Site "Budapest"]
[Date "2024.09.13"]
[Round "3.3"]
[White "Gba, Zotta Marcelle Auror"]
[Black "Pallie, Ehsha Mishela"]
[Result "0-1"]
[ECO "B90"]
[WhiteElo "1427"]
[BlackElo "1767"]
[Annotator "NA"]
[PlyCount "86"]
[EventDate "2024.09.05"]
[EventType "team-tourn"]
[EventCountry "HUN"]
[SourceTitle "playchess.com"]
[Source "ChessBase"]
[SourceQuality "1"]
[WhiteTeam "Cote d/^Ivoire"]
[BlackTeam "Sri Lanka"]
[BlackTeamCountry "SRI"]
[TimeControl "40/5400+30:1800+30"]

1. e4 c5 2. Nf3 d6 3. d4 cxd4 4. Nxd4 Nf6 5. Nc3 a6 6. Be3 e5 7. Nf3 Be7 8. Bc4 O-O 9. O-O Nc6 10. a3 b5 11. Ba2 Bb7 12. Nd5 Nxe4 13. Qd3 Nf6 14. Nxf6+ Bxf6 15. c3 Ne7 16. Ng5 Ng6 17. Bxf7+ Rxf7 18. Nxf7 Kxf7 19. f3 Kg8 20. Rad1 d5 21. Qc2 Rc8 22. Qb3 Rc4 23. Bc1 Kh8 24. Be3 Bg5 25. Bf2 Nf4 26. Rfe1 Bf6 27. g3 Nh3+ 28. Kg2 Nxf2 29. Kxf2 Qb6+ 30. Kf1 e4 31. f4 Qe6 32. Qc2 d4 33. Rxe4 Qxe4 34. Re1 Qh1+ 35. Ke2 d3+ 36. Qxd3 Re4+ 37. Kd1 Rxe1+ 38. Kc2 Be4 39. Qxe4 Qxe4+ 40. Kb3 Qc4+ 41. Kc2 Re2+ 42. Kc1 Qb3 43. Kb1 Qxb2# 0-1

[Event "45th FIDE Womens Olympiad 2024"]
[Site "Budapest"]
[Date "2024.09.13"]
[Round "3.4"]
[White "Vantika Agrawal"]
[Black "Manko, Mariia"]
[Result "1-0"]
[ECO "E04"]
[WhiteElo "2370"]
[BlackElo "2159"]
[Annotator "RC"]
[PlyCount "95"]
[EventDate "2024.09.05"]
[EventType "team-tourn"]
[EventCountry "HUN"]
[SourceTitle "playchess.com"]
[Source "ChessBase"]
[SourceQuality "1"]
[WhiteTeam "India"]
[BlackTeam "Switzerland"]
[WhiteTeamCountry "IND"]
[BlackTeamCountry "SUI"]
[TimeControl "40/5400+30:1800+30"]

1. d4 {[%emt 0:00:12]} d5 {[%emt 0:00:21]} 2. c4 {[%emt 0:00:26]} e6 {[%emt 0:00:07]} 3. Nf3 {[%emt 0:00:09]} Nf6 {[%emt 0:00:39]} 4. g3 {[%emt 0:00:06]} dxc4 {[%emt 0:01:41]} 5. Bg2 {[%emt 0:00:09]} c5 {[%emt 0:00:14]} 6. O-O {[%emt 0:00:36]} Nc6 {[%emt 0:00:07]} 7. Ne5 {[%emt 0:00:42]} Bd7 {[%emt 0:00:06]} 8. Nxc4 {[%emt 0:00:29]} cxd4 {[%emt 0:02:55]} 9. Bf4 {[%emt 0:01:15]} Nd5 {[%emt 0:00:40]} 10. Nd6+ {[%emt 0:01:13]} Bxd6 {[%emt 0:00:06]} 11. Bxd6 {[%emt 0:00:06]} Nde7 {[%emt 0:00:08]} 12. Nd2 {[%emt 0:02:20]} O-O {[%emt 0:03:26]} 13. Qb3 {[%emt 0:01:52]} b6 {[%emt 0:06:16]} 14. Rac1 {[%emt 0:06:14]} Rc8 {[%emt 0:02:46]} 15. Ba3 {[%emt 0:15:07]} Re8 {[%emt 0:17:06]} 16. Ne4 {[%emt 0:16:11]} Nf5 {[%emt 0:08:48]} 17. g4 {[%emt 0:11:51]} Nh4 {[%emt 0:14:18]} 18. Nd6 {[%emt 0:05:44]} Nxg2 {[%emt 0:02:37]} 19. Kxg2 {[%emt 0:02:10]} Na5 {[%emt 0:10:50]} 20. Qf3 {[%emt 0:19:26]} Bc6 {[%emt 0:07:06]} 21. Rxc6 {[%emt 0:00:29]} Nxc6 {[%emt 0:00:10]} 22. Qxf7+ {[%emt 0:00:18]} Kh8 {[%emt 0:00:05]} 23. Qxe8+ {[%emt 0:05:49]} Qxe8 {[%emt 0:00:05]} 24. Nxe8 {[%emt 0:00:02]} Rxe8 {[%emt 0:00:03]} 25. Rc1 {[%emt 0:00:06]} Ne5 {[%emt 0:02:29]} 26. Kg3 {[%emt 0:00:34]} Kg8 {[%emt 0:04:53]} 27. Rc7 {[%emt 0:02:08]} a5 {[%emt 0:01:55]} 28. Kf4 {[%emt 0:01:13]} Nf7 {[%emt 0:01:05]} 29. Ke4 {[%emt 0:00:35]} e5 {[%emt 0:00:56]} 30. h4 {[%emt 0:01:39]} Nh8 {[%emt 0:06:40]} 31. h5 {[%emt 0:02:00]} Nf7 {[%emt 0:00:40]} 32. Be7 {[%emt 0:01:09]} h6 {[%emt 0:01:26]} 33. f3 {[%emt 0:01:28]} Kh7 {[%emt 0:01:31]} 34. Kd5 {[%emt 0:00:46]} Kg8 {[%emt 0:00:49]} 35. a4 {[%emt 0:01:07]} Rb8 {[%emt 0:00:38]} 36. Ke6 {[%emt 0:01:46]} Ra8 {[%emt 0:00:59]} 37. Rb7 {[%emt 0:00:49]} Re8 {[%emt 0:02:24]} 38. Kd7 {[%emt 0:00:41]} Ra8 {[%emt 0:00:06]} 39. Ke6 {[%emt 0:00:20]} Re8 {[%emt 0:00:13]} 40. Rxb6 {[%emt 0:00:23]} Rc8 {[%emt 0:02:29]} 41. Ra6 {[%emt 0:07:55]} Ng5+ {[%emt 0:02:57]} 42. Bxg5 {[%emt 0:01:40]} hxg5 {[%emt 0:00:09]} 43. Kxe5 {[%emt 0:00:44]} Re8+ {[%emt 0:00:51]} 44. Kxd4 {[%emt 0:00:55]} Rxe2 {[%emt 0:00:58]} 45. Rxa5 {[%emt 0:00:15]} Rxb2 {[%emt 0:00:07]} 46. Rxg5 {[%emt 0:00:03]} Rb4+ {[%emt 0:00:04]} 47. Ke3 {[%emt 0:00:07]} Rxa4 {[%emt 0:00:03]} 48. h6 {[%emt 0:00:07]} 1-0

[Event "45th FIDE Womens Olympiad 2024"]
[Site "Budapest"]
[Date "2024.09.13"]
[Round "3.5"]
[White "Gaal, Zsoka"]
[Black "Khamdamova, Afruza"]
[Result "0-1"]
[ECO "D36"]
[WhiteElo "2385"]
[BlackElo "2313"]
[Annotator "RC"]
[PlyCount "80"]
[EventDate "2024.09.05"]
[EventType "team-tourn"]
[EventCountry "HUN"]
[SourceTitle "playchess.com"]
[Source "ChessBase"]
[SourceQuality "1"]
[WhiteTeam "Hungary"]
[BlackTeam "Uzbekistan"]
[WhiteTeamCountry "HUN"]
[BlackTeamCountry "UZB"]
[TimeControl "40/5400+30:1800+30"]

1. d4 {[%emt 0:00:06]} Nf6 {[%emt 0:00:11]} 2. c4 {[%emt 0:00:12]} e6 {[%emt 0:00:13]} 3. Nc3 {[%emt 0:00:15]} d5 {[%emt 0:00:19]} 4. cxd5 {[%emt 0:00:11]} exd5 {[%emt 0:00:05]} 5. Bg5 {[%emt 0:00:11]} c6 {[%emt 0:00:31]} 6. e3 {[%emt 0:00:13]} h6 {[%emt 0:00:18]} 7. Bh4 {[%emt 0:00:33]} Be7 {[%emt 0:00:16]} 8. Bd3 {[%emt 0:00:26]} O-O {[%emt 0:00:21]} 9. Qc2 {[%emt 0:00:25]} Re8 {[%emt 0:00:14]} 10. Nf3 {[%emt 0:00:24]} Ne4 {[%emt 0:01:18]} 11. Bxe7 {[%emt 0:01:37]} Qxe7 {[%emt 0:00:20]} 12. O-O {[%emt 0:00:21]} Nd7 {[%emt 0:00:22]} 13. Rae1 {[%emt 0:00:38]} Ndf6 {[%emt 0:01:40]} 14. Ne5 {[%emt 0:00:40]} Bf5 {[%emt 0:04:41]} 15. f3 {[%emt 0:01:59]} Nxc3 {[%emt 0:05:56]} 16. Bxf5 {[%emt 0:00:29]} Nxa2 {[%emt 0:21:54]} 17. Qf2 {[%emt 0:25:45]} Nb4 {[%emt 0:02:47]} 18. Rc1 {[%emt 0:17:10]} Na6 {[%emt 0:14:55]} 19. g4 {[%emt 0:01:30]} Nb8 {[%emt 0:12:21]} 20. f4 {[%emt 0:11:28]} Ne4 {[%emt 0:02:18]} 21. Bxe4 {[%emt 0:08:00]} dxe4 {[%emt 0:00:03]} 22. g5 {[%emt 0:00:24]} h5 {[%emt 0:19:09]} 23. g6 {[%emt 0:02:31]} fxg6 {[%emt 0:00:19]} 24. Nxg6 {[%emt 0:01:17]} Qd6 {[%emt 0:00:24]} 25. Ne5 {[%emt 0:05:16]} Nd7 {[%emt 0:00:32]} 26. Qg2 {[%emt 0:00:43]} Nxe5 {[%emt 0:02:47]} 27. fxe5 {[%emt 0:00:12]} Qe6 {[%emt 0:01:21]} 28. Qxe4 {[%emt 0:00:50]} Rf8 {[%emt 0:00:05]} 29. Kh1 {[%emt 0:05:02]} Rxf1+ {[%emt 0:00:52]} 30. Rxf1 {[%emt 0:00:08]} Rf8 {[%emt 0:00:27]} 31. Rf4 {[%emt 0:03:22]} Qd5 {[%emt 0:03:22]} 32. Qxd5+ {[%emt 0:01:38]} cxd5 {[%emt 0:00:04]} 33. h4 {[%emt 0:00:09]} a5 {[%emt 0:01:18]} 34. Kg2 {[%emt 0:07:00]} b5 {[%emt 0:00:08]} 35. Kg3 {[%emt 0:03:58]} a4 {[%emt 0:01:45]} 36. e6 {[%emt 0:00:06]} Rxf4 {[%emt 0:02:06]} 37. Kxf4 {[%emt 0:00:07]} b4 {[%emt 0:00:05]} 38. Ke5 {[%emt 0:00:17]} Kf8 {[%emt 0:00:11]} 39. e4 {[%emt 0:01:14]} a3 {[%emt 0:00:56]} 40. Kd6 {[%emt 0:01:23]} Ke8 {[%emt 0:00:06]} 0-1

[Event "45th FIDE Womens Olympiad 2024"]
[Site "Budapest"]
[Date "2024.09.13"]
[Round "3.5"]
[White "Ampaire Shakira"]
[Black "Magne Kouokam Sylviane"]
[Result "1-0"]
[ECO "D02"]
[WhiteElo "1839"]
[BlackElo "1587"]
[Annotator "NA RC"]
[PlyCount "82"]
[EventDate "2024.09.05"]
[EventType "team-tourn"]
[EventCountry "HUN"]
[SourceTitle "playchess.com"]
[Source "ChessBase"]
[SourceQuality "1"]
[WhiteTeam "Uganda"]
[BlackTeam "Cameroon"]
[WhiteTeamCountry "UGA"]
[BlackTeamCountry "CAM"]
[TimeControl "40/5400+30:1800+30"]

1. d4 d5 2. Nf3 Nc6 3. Bf4 Bf5 4. c3 e6 5. Qb3 Rb8 6. e3 Nf6 7. Qa4 Nd7 8. Bb5 f6 9. b4 Bd6 10. Bxd6 cxd6 11. Bxc6 bxc6 12. Qxc6 Rb6 13. Qa4 Qc8 14. O-O Ra6 15. Qb3 O-O 16. a4 Rc6 17. Rc1 a6 18. Na3 Nb6 19. b5 axb5 20. Nxb5 Rf7 21. Nd2 Bd3 22. Qb4 Rd7 23. Nb3 Nc4 24. Na5 Rb6 25. Nxc4 Bxc4 26. Qa5 Ra6 27. Qb4 Rb6 28. h3 Qc6 29. Rcb1 Rdb7 30. Qa5 Bxb5 31. axb5 Rxb5 32. Rxb5 Rxb5 33. Qd8+ Kf7 34. Ra8 Kg6 35. Rc8 Qa6 36. Kh2 e5 37. Qe8+ Kf5 38. Qh5+ Ke6 39. Rc7 Rb8 40. Qg4+ f5 41. Qxg7 e4 1-0

[Event "45th FIDE Womens Olympiad 2024"]
[Site "Budapest"]
[Date "2024.09.13"]
[Round "3.6"]
[White "Yakubbaeva, Nilufar"]
[Black "Hoang, Thanh Trang"]
[Result "0-1"]
[ECO "A85"]
[WhiteElo "2248"]
[BlackElo "2351"]
[Annotator "RC"]
[PlyCount "72"]
[EventDate "2024.09.05"]
[EventType "team-tourn"]
[EventCountry "HUN"]
[SourceTitle "playchess.com"]
[Source "ChessBase"]
[SourceQuality "1"]
[WhiteTeam "Uzbekistan"]
[BlackTeam "Hungary"]
[WhiteTeamCountry "UZB"]
[BlackTeamCountry "HUN"]
[TimeControl "40/5400+30:1800+30"]

1. d4 {[%emt 0:00:11]} f5 {[%emt 0:00:27]} 2. c4 {[%emt 0:00:19]} Nf6 {[%emt 0:00:18]} 3. Nc3 {[%emt 0:00:11]} g6 {[%emt 0:01:18]} 4. h4 {[%emt 0:00:50]} d6 {[%emt 0:03:42]} 5. h5 {[%emt 0:00:30]} Rg8 {[%emt 0:01:14]} 6. hxg6 {[%emt 0:05:46]} hxg6 {[%emt 0:00:43]} 7. Nf3 {[%emt 0:03:41]} Bg7 {[%emt 0:05:24]} 8. Qc2 {[%emt 0:22:19]} Nc6 {[%emt 0:09:52]} 9. d5 {[%emt 0:04:34]} Ne5 {[%emt 0:00:34]} 10. Ng5 {[%emt 0:01:37]} c6 {[%emt 0:03:21]} 11. e3 {[%emt 0:11:18]} Bd7 {[%emt 0:05:38]} 12. Qb3 {[%emt 0:05:36]} Qc7 {[%emt 0:03:34]} 13. Bd2 {[%emt 0:00:58]} Rh8 {[%emt 0:13:16]} 14. Rxh8+ {[%emt 0:01:16]} Bxh8 {[%emt 0:00:11]} 15. Rc1 {[%emt 0:06:02]} Qb6 {[%emt 0:02:44]} 16. Qa3 {[%emt 0:05:57]} Rc8 {[%emt 0:04:03]} 17. Na4 {[%emt 0:09:00]} Qc7 {[%emt 0:01:01]} 18. Be2 {[%emt 0:03:50]} Nf7 {[%emt 0:05:26]} 19. Nxf7 {[%emt 0:01:44]} Kxf7 {[%emt 0:00:07]} 20. f3 {[%emt 0:01:11]} Bg7 {[%emt 0:03:46]} 21. Kf2 {[%emt 0:01:37]} Qb8 {[%emt 0:02:18]} 22. Nc3 {[%emt 0:01:56]} cxd5 {[%emt 0:01:39]} 23. cxd5 {[%emt 0:00:33]} b5 {[%emt 0:01:30]} 24. b4 {[%emt 0:01:53]} Qb6 {[%emt 0:01:17]} 25. Bd3 {[%emt 0:07:27]} a6 {[%emt 0:03:40]} 26. Qb3 {[%emt 0:00:41]} e5 {[%emt 0:03:18]} 27. Ke2 {[%emt 0:01:37]} Bh6 {[%emt 0:01:48]} 28. Rh1 {[%emt 0:00:26]} Nh5 {[%emt 0:01:36]} 29. Kd1 {[%emt 0:00:49]} Bxe3 {[%emt 0:01:09]} 30. g4 {[%emt 0:00:24]} Bxd2 {[%emt 0:03:05]} 31. Kxd2 {[%emt 0:00:54]} Qf2+ {[%emt 0:00:44]} 32. Ne2 {[%emt 0:00:19]} fxg4 {[%emt 0:03:25]} 33. fxg4 {[%emt 0:00:38]} Bxg4 {[%emt 0:00:52]} 34. Qb1 {[%emt 0:00:35]} Bxe2 {[%emt 0:01:23]} 35. Bxe2 {[%emt 0:00:48]} Nf4 {[%emt 0:00:37]} 36. Qe4 {[%emt 0:00:28]} Nxe2 {[%emt 0:01:11]} 0-1

[Event "45th FIDE Womens Olympiad 2024"]
[Site "Budapest"]
[Date "2024.09.13"]
[Round "3.6"]
[White "Danwe Maissiri Carole"]
[Black "Sana Omprakash Kayyar"]
[Result "0-1"]
[ECO "C54"]
[WhiteElo "1456"]
[BlackElo "1937"]
[Annotator "NA RC"]
[PlyCount "72"]
[EventDate "2024.09.05"]
[EventType "team-tourn"]
[EventCountry "HUN"]
[SourceTitle "playchess.com"]
[Source "ChessBase"]
[SourceQuality "1"]
[WhiteTeam "Cameroon"]
[BlackTeam "Uganda"]
[WhiteTeamCountry "CAM"]
[BlackTeamCountry "UGA"]
[TimeControl "40/5400+30:1800+30"]

1. e4 e5 2. Nf3 Nc6 3. Bc4 Nf6 4. d3 Bc5 5. c3 d6 6. O-O O-O 7. h3 h6 8. Re1 Bb6 9. Be3 Re8 10. b4 Bxe3 11. Rxe3 d5 12. exd5 Nxd5 13. Re1 a6 14. Qb3 Be6 15. Nxe5 Nxe5 16. Rxe5 Qf6 17. Re1 Qg5 18. Na3 Nf4 19. g3 Nxh3+ 20. Kf1 Qf5 21. Qc2 Bxc4 22. Nxc4 Qf3 23. Ne3 Rxe3 24. Rxe3 Qh1+ 25. Ke2 Qxa1 26. f4 Qh1 27. Kd2 Qg2+ 28. Kc1 Qg1+ 29. Kd2 Qf2+ 30. Re2 Qxg3 31. Re3 Qf2+ 32. Re2 Qxf4+ 33. Ke1 Qg3+ 34. Kd1 Nf4 35. Re4 Rd8 36. Kc1 Nxd3+ 0-1

[Event "45th FIDE Womens Olympiad 2024"]
[Site "Budapest"]
[Date "2024.09.13"]
[Round "3.7"]
[White "Terbe, Julianna"]
[Black "Omonova, Umida"]
[Result "0-1"]
[ECO "D26"]
[WhiteElo "2245"]
[BlackElo "2032"]
[Annotator "RC"]
[PlyCount "56"]
[EventDate "2024.09.05"]
[EventType "team-tourn"]
[EventCountry "HUN"]
[SourceTitle "playchess.com"]
[Source "ChessBase"]
[SourceQuality "1"]
[WhiteTeam "Hungary"]
[BlackTeam "Uzbekistan"]
[WhiteTeamCountry "HUN"]
[BlackTeamCountry "UZB"]
[TimeControl "40/5400+30:1800+30"]

1. d4 {[%emt 0:00:04]} d5 {[%emt 0:00:43]} 2. c4 {[%emt 0:00:14]} dxc4 {[%emt 0:01:59]} 3. Nf3 {[%emt 0:00:15]} Nf6 {[%emt 0:00:21]} 4. e3 {[%emt 0:00:09]} e6 {[%emt 0:00:17]} 5. Bxc4 {[%emt 0:00:06]} a6 {[%emt 0:01:15]} 6. Bb3 {[%emt 0:02:04]} b5 {[%emt 0:02:16]} 7. O-O {[%emt 0:01:24]} Bb7 {[%emt 0:00:25]} 8. Nc3 {[%emt 0:01:42]} c5 {[%emt 0:01:52]} 9. Qe2 {[%emt 0:00:09]} cxd4 {[%emt 0:01:44]} 10. exd4 {[%emt 0:00:56]} Be7 {[%emt 0:03:28]} 11. Bg5 {[%emt 0:01:41]} O-O {[%emt 0:05:23]} 12. Rad1 {[%emt 0:00:21]} b4 {[%emt 0:03:02]} 13. Na4 {[%emt 0:08:10]} Nbd7 {[%emt 0:05:28]} 14. Ne5 {[%emt 0:07:19]} Nxe5 {[%emt 0:11:04]} 15. dxe5 {[%emt 0:07:38]} Nd5 {[%emt 0:01:11]} 16. Bxe7 {[%emt 0:00:22]} Qxe7 {[%emt 0:00:07]} 17. Qg4 {[%emt 0:03:05]} Rad8 {[%emt 0:12:11]} 18. Rd3 {[%emt 0:08:41]} h5 {[%emt 0:02:41]} 19. Qc4 {[%emt 0:07:16]} Qg5 {[%emt 0:04:27]} 20. f4 {[%emt 0:12:04]} Qh6 {[%emt 0:01:28]} 21. Rh3 {[%emt 0:07:20]} Rc8 {[%emt 0:05:46]} 22. Qd4 {[%emt 0:01:12]} Rfd8 {[%emt 0:03:23]} 23. Qf2 {[%emt 0:01:53]} Qg6 {[%emt 0:05:12]} 24. Rg3 {[%emt 0:04:00]} Qe4 {[%emt 0:01:38]} 25. Bxd5 {[%emt 0:12:01]} Rxd5 {[%emt 0:03:06]} 26. Re1 {[%emt 0:04:45]} Qc2 {[%emt 0:01:05]} 27. Nb6 {[%emt 0:05:36]} Rd2 {[%emt 0:01:18]} 28. Qf1 {[%emt 0:02:04]} Qc5+ {[%emt 0:00:09]} 0-1